fUST/lending_fUST_20240625
["ID","MTS","AMOUNT","RATE_DAILY","PERIOD"]
[330330372,1719259840095,-500.0,0.00016438,2]
[330330373,1719259840105,-217.29290856,0.00016438,2]
[330330374,1719259840115,-500.0,0.00016438,2]
[330330375,1719259840125,-500.0,0.00016438,2]
[330330376,1719259840134,-500.0,0.00016438,2]
[330330377,1719259840144,-500.0,0.00016438,2]
[330330378,1719259840154,-500.0,0.00016438,2]
[330330379,1719259840163,-774.21,0.00016438,2]
[330330380,1719259840174,-267.4834616,0.00016438,2]
[330330381,1719259840189,-500.0,0.00016438,2]
[330330382,1719259840198,-500.0,0.00016438,2]
[330330383,1719259840208,-500.0,0.00016438,2]
[330330384,1719259840218,-500.0,0.00016438,2]
[330330385,1719259840230,-503.76418704,0.00016438,2]
[330330386,1719259840239,-500.0,0.00016438,2]
[330330387,1719259840249,-500.0,0.00016438,2]
[330330388,1719259840258,-500.0,0.00016438,2]
[330330389,1719259840268,-501.32110454,0.00016438,2]
[330330391,1719259840277,-500.0,0.00016438,2]
[330330393,1719259840287,-500.0,0.00016438,2]
[330330394,1719259840296,-500.0,0.00016438,2]
[330330396,1719259840305,-500.0,0.00016438,2]
[330330397,1719259840315,-500.0,0.00016438,2]
[330330398,1719259840324,-500.0,0.00016438,2]
[330330399,1719259840334,-500.0,0.00016438,2]
[330330400,1719259840344,-506.22622148,0.00016438,2]
[330330401,1719259840354,-500.0,0.00016438,2]
[330330403,1719259840365,-610.54721276,0.00016438,2]
[330330405,1719259840377,-1344.49,0.00016438,2]
[330330407,1719259840386,-500.0,0.00016438,2]
[330330409,1719259840396,-500.0,0.00016438,2]
[330330411,1719259840406,-500.0,0.00016438,2]
[330330413,1719259840415,-500.0,0.00016438,2]
[330330415,1719259840425,-500.0,0.00016438,2]
[330330417,1719259840435,-150.50718284,0.00016438,2]
[330330418,1719259840444,-500.0,0.00016438,2]
[330330419,1719259840454,-253.93514534,0.00016438,2]
[330330420,1719259840464,-500.0,0.00016438,2]
[330330421,1719259840473,-500.0,0.00016438,2]
[330330423,1719259840482,-500.0,0.00016438,2]
[330330425,1719259840492,-500.0,0.00016438,2]
[330330427,1719259840501,-500.0,0.00016438,2]
[330330428,1719259840511,-500.0,0.00016438,2]
[330330429,1719259840520,-504.64572553,0.00016438,2]
[330330430,1719259840530,-500.0,0.00016438,2]
[330330431,1719259840540,-500.0,0.00016438,2]
[330330432,1719259840549,-500.0,0.00016438,2]
[330330433,1719259840558,-500.0,0.00016438,2]
[330330434,1719259840567,-500.0,0.00016438,2]
[330330436,1719259840577,-500.0,0.00016438,2]
[330330437,1719259840587,-500.0,0.00016438,2]
[330330438,1719259840596,-515.52002573,0.00016438,2]
[330330439,1719259840606,-500.0,0.00016438,2]
[330330440,1719259840619,-505.0900718,0.00016438,2]
[330330442,1719259840628,-500.0,0.00016438,2]
[330330443,1719259840637,-500.0,0.00016438,2]
[330330445,1719259840647,-205.81766206,0.00016438,2]
[330330447,1719259840657,-500.0,0.00016438,2]
[330330449,1719259840667,-500.0,0.00016438,2]
[330330450,1719259840676,-500.0,0.00016438,2]
[330330452,1719259840685,-500.0,0.00016438,2]
[330330453,1719259840696,-500.0,0.00016438,2]
[330330454,1719259840706,-300.0,0.00016438,2]
[330330455,1719259840715,-580.26,0.00016438,2]
[330330456,1719259840726,-500.0,0.00016438,2]
[330330457,1719259840736,-500.0,0.00016438,2]
[330330458,1719259840746,-439.70153901,0.00016438,2]
[330330459,1719259840756,-523.67355859,0.00016438,2]
[330330460,1719259840766,-500.0,0.00016438,2]
[330330461,1719259840776,-500.0,0.00016438,2]
[330330462,1719259840785,-500.0,0.00016438,2]
[330330463,1719259840794,-500.0,0.00016438,2]
[330330464,1719259840804,-500.0,0.00016438,2]
[330330465,1719259840814,-500.0,0.00016438,2]
[330330466,1719259840823,-500.0,0.00016438,2]
[330330467,1719259840833,-500.0,0.00016438,2]
[330330468,1719259840843,-504.18179672,0.00016438,2]
[330330469,1719259840852,-500.0,0.00016438,2]
[330330470,1719259840865,-500.0,0.00016438,2]
[330330471,1719259840875,-500.0,0.00016438,2]
[330330472,1719259840884,-492.1976022,0.00016438,2]
[330330473,1719259840893,-500.0,0.00016438,2]
[330330474,1719259840903,-500.0,0.00016438,2]
[330330475,1719259840914,-508.16738939,0.00016438,2]
[330330476,1719259840923,-500.0,0.00016438,2]
[330330477,1719259840932,-500.0,0.00016438,2]
[330330478,1719259840941,-500.0,0.00016438,2]
[330330479,1719259840951,-500.0,0.00016438,2]
[330330480,1719259840960,-1208.15,0.00016438,2]
[330330481,1719259840969,-516.20863492,0.00016438,2]
[330330482,1719259840978,-323.93403992,0.00016438,2]
[330330483,1719259840987,-500.0,0.00016438,2]
[330330484,1719259840997,-500.0,0.00016438,2]
[330330485,1719259841007,-565.43,0.00016438,2]
[330330486,1719259841016,-500.0,0.00016438,2]
[330330487,1719259841025,-1319.39,0.00016438,2]
[330330488,1719259841034,-532.30448464,0.00016438,2]
[330330489,1719259841044,-500.0,0.00016438,2]
[330330490,1719259841053,-500.0,0.00016438,2]
[330330491,1719259841062,-500.0,0.00016438,2]
[330330492,1719259841071,-500.0,0.00016438,2]
[330330493,1719259841080,-478.48029184,0.00016438,2]
[330330494,1719259841089,-500.0,0.00016438,2]
[330330495,1719259841099,-500.0,0.00016438,2]
[330330496,1719259841108,-500.0,0.00016438,2]
[330330497,1719259841119,-505.72489785,0.00016438,2]
[330330498,1719259841128,-500.0,0.00016438,2]
[330330499,1719259841137,-500.0,0.00016438,2]
[330330500,1719259841146,-500.0,0.00016438,2]
[330330501,1719259841155,-500.0,0.00016438,2]
[330330502,1719259841164,-506.70095639,0.00016438,2]
[330330503,1719259841174,-500.0,0.00016438,2]
[330330504,1719259841185,-500.0,0.00016438,2]
[330330505,1719259841196,-500.0,0.00016438,2]
[330330506,1719259841205,-500.0,0.00016438,2]
[330330507,1719259841217,-500.0,0.00016438,2]
[330330508,1719259841227,-500.0,0.00016438,2]
[330330509,1719259841236,-514.22,0.00016438,2]
[330330510,1719259841246,-630.85030799,0.00016438,2]
[330330511,1719259841256,-500.0,0.00016438,2]
[330330512,1719259841269,-500.0,0.00016438,2]
[330330513,1719259841279,-564.23,0.00016438,2]
[330330514,1719259841287,-500.0,0.00016438,2]
[330330515,1719259841296,-500.0,0.00016438,2]
[330330516,1719259841306,-777.55,0.00016438,2]
[330330517,1719259841315,-23766.05,0.00016438,2]
[330330518,1719259841324,-157.10478909,0.00016438,2]
[330330519,1719259841334,-500.0,0.00016438,2]
[330330520,1719259841344,-554.6530708,0.00016438,2]
[330330521,1719259841353,-500.0,0.00016438,2]
[330330522,1719259841364,-500.0,0.00016438,2]
[330330523,1719259841374,-500.0,0.00016438,2]
[330330524,1719259841383,-500.0,0.00016438,2]
[330330525,1719259841392,-1037.99,0.00016438,2]
[330330526,1719259841401,-500.0,0.00016438,2]
[330330527,1719259841411,-1992.94,0.00016438,2]
[330330528,1719259841420,-2425.63,0.00016438,2]
[330330529,1719259841429,-2811.88,0.00016438,2]
[330330530,1719259841438,-500.0,0.00016438,2]
[330330531,1719259841447,-500.0,0.00016438,2]
[330330532,1719259841456,-500.0,0.00016438,2]
[330330533,1719259841465,-672.9,0.00016438,2]
[330330534,1719259841475,-500.0,0.00016438,2]
[330330535,1719259841484,-500.0,0.00016438,2]
[330330536,1719259841494,-500.0,0.00016438,2]
[330330537,1719259841504,-500.0,0.00016438,2]
[330330538,1719259841513,-500.0,0.00016438,2]
[330330539,1719259841522,-5018.5,0.00016438,2]
[330330540,1719259841531,-500.0,0.00016438,2]
[330330541,1719259841541,-500.0,0.00016438,2]
[330330542,1719259841550,-500.0,0.00016438,2]
[330330543,1719259841559,-500.0,0.00016438,2]
[330330544,1719259841569,-500.0,0.00016438,2]
[330330545,1719259841578,-526.10548931,0.00016438,2]
[330330546,1719259841588,-500.0,0.00016438,2]
[330330547,1719259841598,-500.0,0.00016438,2]
[330330548,1719259841608,-500.0,0.00016438,2]
[330330549,1719259841622,-500.0,0.00016438,2]
[330330550,1719259841632,-500.0,0.00016438,2]
[330330551,1719259841642,-500.0,0.00016438,2]
[330330552,1719259841651,-500.0,0.00016438,2]
[330330553,1719259841661,-500.0,0.00016438,2]
[330330554,1719259841672,-500.0,0.00016438,2]
[330330555,1719259841681,-500.0,0.00016438,2]
[330330556,1719259841691,-500.0,0.00016438,2]
[330330557,1719259841701,-500.0,0.00016438,2]
[330330558,1719259841710,-500.0,0.00016438,2]
[330330559,1719259841720,-500.0,0.00016438,2]
[330330560,1719259841730,-508.48,0.00016438,2]
[330330561,1719259841741,-500.0,0.00016438,2]
[330330562,1719259841750,-1021.24,0.00016438,2]
[330330563,1719259841760,-1040.35,0.00016438,2]
[330330564,1719259841770,-500.0,0.00016438,2]
[330330565,1719259841779,-4287.47,0.00016438,2]
[330330566,1719259841788,-500.0,0.00016438,2]
[330330567,1719259841798,-1436.97,0.00016438,2]
[330330568,1719259841807,-500.0,0.00016438,2]
[330330569,1719259841818,-500.0,0.00016438,2]
[330330570,1719259841828,-500.0,0.00016438,2]
[330330571,1719259841838,-532.16776344,0.00016438,2]
[330330572,1719259841848,-500.0,0.00016438,2]
[330330573,1719259841858,-500.0,0.00016438,2]
[330330574,1719259841876,-500.0,0.00016438,2]
[330330575,1719259841886,-500.0,0.00016438,2]
[330330576,1719259841896,-500.0,0.00016438,2]
[330330577,1719259841906,-500.0,0.00016438,2]
[330330578,1719259841915,-500.0,0.00016438,2]
[330330579,1719259841925,-500.0,0.00016438,2]
[330330580,1719259841938,-500.0,0.00016438,2]
[330330581,1719259841948,-500.0,0.00016438,2]
[330330582,1719259841958,-500.0,0.00016438,2]
[330330583,1719259841968,-500.0,0.00016438,2]
[330330584,1719259841977,-2632.12,0.00016438,2]
[330330585,1719259841987,-435.11972779,0.00016438,2]
[330330586,1719259841996,-500.0,0.00016438,2]
[330330587,1719259842006,-500.0,0.00016438,2]
[330330588,1719259842015,-5699.86,0.00016438,2]
[330330589,1719259842024,-500.0,0.00016438,2]
[330330590,1719259842034,-500.0,0.00016438,2]
[330330591,1719259842159,-500.0,0.00016438,2]
[330330592,1719259842170,-500.0,0.00016438,2]
[330330593,1719259842179,-531.22598985,0.00016438,2]
[330330594,1719259842192,-500.0,0.00016438,2]
[330330595,1719259842201,-500.0,0.00016438,2]
[330330596,1719259842211,-534.91107468,0.00016438,2]
[330330597,1719259842222,-500.0,0.00016438,2]
[330330598,1719259842234,-505.86142669,0.00016438,2]
[330330599,1719259842244,-3606.75,0.00016438,2]
[330330600,1719259842254,-500.0,0.00016438,2]
[330330601,1719259842263,-1225.16,0.00016438,2]
[330330602,1719259842275,-10085.71,0.00016438,2]
[330330603,1719259842284,-500.0,0.00016438,2]
[330330604,1719259842294,-500.0,0.00016438,2]
[330330605,1719259842304,-500.0,0.00016438,2]
[330330606,1719259842313,-731.23,0.00016438,2]
[330330607,1719259842322,-500.0,0.00016438,2]
[330330608,1719259842332,-500.0,0.00016438,2]
[330330609,1719259842341,-500.0,0.00016438,2]
[330330610,1719259842351,-500.0,0.00016438,2]
[330330611,1719259842360,-500.0,0.00016438,2]
[330330612,1719259842374,-500.0,0.00016438,2]
[330330613,1719259842383,-500.0,0.00016438,2]
[330330614,1719259842392,-500.0,0.00016438,2]
[330330615,1719259842402,-500.0,0.00016438,2]
[330330616,1719259842411,-500.0,0.00016438,2]
[330330617,1719259842420,-509.92354477,0.00016438,2]
[330330618,1719259842429,-500.0,0.00016438,2]
[330330619,1719259842439,-500.0,0.00016438,2]
[330330620,1719259842448,-528.83690298,0.00016438,2]
[330330621,1719259842457,-500.0,0.00016438,2]
[330330622,1719259842466,-500.0,0.00016438,2]
[330330623,1719259842476,-590.515982,0.00016438,2]
[330330624,1719259842485,-500.0,0.00016438,2]
[330330625,1719259842494,-500.0,0.00016438,2]
[330330626,1719259842504,-500.0,0.00016438,2]
[330330627,1719259842513,-500.0,0.00016438,2]
[330330628,1719259842522,-500.0,0.00016438,2]
[330330629,1719259842531,-500.0,0.00016438,2]
[330330630,1719259842541,-500.0,0.00016438,2]
[330330631,1719259842551,-500.0,0.00016438,2]
[330330632,1719259842560,-500.0,0.00016438,2]
[330330633,1719259842569,-502.39837534,0.00016438,2]
[330330634,1719259842578,-500.0,0.00016438,2]
[330330635,1719259842587,-500.0,0.00016438,2]
[330330636,1719259842597,-646.63,0.00016438,2]
[330330637,1719259842606,-7884.49,0.00016438,2]
[330330638,1719259842618,-500.0,0.00016438,2]
[330330639,1719259842627,-755.42,0.00016438,2]
[330330640,1719259842636,-1387.03,0.00016438,2]
[330330641,1719259842645,-500.0,0.00016438,2]
[330330642,1719259842654,-500.0,0.00016438,2]
[330330643,1719259842663,-500.0,0.00016438,2]
[330330644,1719259842673,-500.0,0.00016438,2]
[330330645,1719259842683,-500.0,0.00016438,2]
[330330646,1719259842693,-866.22,0.00016438,2]
[330330647,1719259842702,-654.7,0.00016438,2]
[330330648,1719259842711,-500.0,0.00016438,2]
[330330649,1719259842721,-500.0,0.00016438,2]
[330330650,1719259842731,-314.64604994,0.00016438,2]
[330330651,1719259842740,-500.0,0.00016438,2]
[330330653,1719259842750,-500.0,0.00016438,2]
[330330655,1719259842760,-500.0,0.00016438,2]
[330330657,1719259842769,-500.0,0.00016438,2]
[330330659,1719259842778,-651.34,0.00016438,2]
[330330660,1719259842787,-500.0,0.00016438,2]
[330330661,1719259842797,-500.0,0.00016438,2]
[330330662,1719259842806,-2884.02,0.00016438,2]
[330330663,1719259842816,-500.0,0.00016438,2]
[330330664,1719259842825,-554.35155091,0.00016438,2]
[330330665,1719259842835,-2152.08,0.00016438,2]
[330330666,1719259842844,-500.0,0.00016438,2]
[330330667,1719259842853,-500.0,0.00016438,2]
[330330669,1719259842865,-500.0,0.00016438,2]
[330330670,1719259842875,-500.0,0.00016438,2]
[330330671,1719259842884,-500.0,0.00016438,2]
[330330672,1719259842893,-500.0,0.00016438,2]
[330330673,1719259842902,-500.0,0.00016438,2]
[330330674,1719259842912,-500.0,0.00016438,2]
[330330675,1719259842921,-522.58,0.00016438,2]
[330330676,1719259842931,-1335.42,0.00016438,2]
[330330677,1719259842940,-1061.94,0.00016438,2]
[330330678,1719259842949,-1061.94,0.00016438,2]
[330330680,1719259842958,-1061.94,0.00016438,2]
[330330681,1719259842968,-1061.94,0.00016438,2]
[330330683,1719259842977,-1061.94,0.00016438,2]
[330330685,1719259842987,-500.0,0.00016438,2]
[330330687,1719259842996,-516.71875963,0.00016438,2]
[330330689,1719259843006,-1061.94,0.00016438,2]
[330330691,1719259843015,-1061.94,0.00016438,2]
[330330693,1719259843025,-1061.94,0.00016438,2]
[330330695,1719259843034,-1061.94,0.00016438,2]
[330330698,1719259843043,-500.0,0.00016438,2]
[330330701,1719259843052,-561.1928651,0.00016438,2]
[330330704,1719259843061,-500.0,0.00016438,2]
[330330707,1719259843070,-394.05562049,0.00016438,2]
[330330710,1719259843081,-470.45611338,0.00016438,2]
[330330714,1719259843090,-1219.59,0.00016438,2]
[330330717,1719259843099,-500.0,0.00016438,2]
[330330720,1719259843108,-7898.32,0.00016438,2]
[330330723,1719259843120,-500.0,0.00016438,2]
[330330726,1719259843129,-500.0,0.00016438,2]
[330330729,1719259843139,-500.0,0.00016438,2]
[330330734,1719259843148,-500.0,0.00016438,2]
[330330737,1719259843157,-500.0,0.00016438,2]
[330330740,1719259843166,-500.0,0.00016438,2]
[330330742,1719259843180,-500.0,0.00016438,2]
[330330745,1719259843194,-500.0,0.00016438,2]
[330330748,1719259843214,-500.0,0.00016438,2]
[330330753,1719259843231,-508.83724709,0.00016438,2]
[330330756,1719259843240,-500.0,0.00016438,2]
[330330758,1719259843249,-500.0,0.00016438,2]
[330330761,1719259843258,-500.0,0.00016438,2]
[330330764,1719259843268,-500.0,0.00016438,2]
[330330767,1719259843277,-500.0,0.00016438,2]
[330330770,1719259843286,-500.0,0.00016438,2]
[330330773,1719259843295,-500.0,0.00016438,2]
[330330775,1719259843304,-500.0,0.00016438,2]
[330330776,1719259843313,-500.0,0.00016438,2]
[330330778,1719259843323,-561.66272529,0.00016438,2]
[330330779,1719259843335,-500.0,0.00016438,2]
[330330780,1719259843349,-1119.0,0.00016438,2]
[330330781,1719259843366,-500.0,0.00016438,2]
[330330782,1719259843376,-897.15,0.00016438,2]
[330330783,1719259843385,-500.0,0.00016438,2]
[330330784,1719259843396,-500.0,0.00016438,2]
[330330785,1719259843405,-500.0,0.00016438,2]
[330330786,1719259843415,-500.0,0.00016438,2]
[330330787,1719259843424,-503.54132204,0.00016438,2]
[330330788,1719259843433,-500.0,0.00016438,2]
[330330789,1719259843442,-500.0,0.00016438,2]
[330330790,1719259843452,-500.0,0.00016438,2]
[330330791,1719259843460,-500.0,0.00016438,2]
[330330792,1719259843469,-4161.03,0.00016438,2]
[330330793,1719259843478,-500.0,0.00016438,2]
[330330794,1719259843488,-500.0,0.00016438,2]
[330330795,1719259843496,-500.0,0.00016438,2]
[330330796,1719259843506,-500.0,0.00016438,2]
[330330797,1719259843515,-500.0,0.00016438,2]
[330330798,1719259843524,-500.0,0.00016438,2]
[330330799,1719259843534,-500.0,0.00016438,2]
[330330800,1719259843543,-5278.8466527,0.00016458,2]
[330330801,1719259843552,-1613.30839628,0.0001647,2]
[330330802,1719259843561,-153.0,0.00016487,2]
[330330803,1719259843570,-876.0,0.00016584,2]
[330330804,1719259843580,-1613.30839628,0.00016612,2]
[330330805,1719259843589,-276.08930439,0.0001668,2]
[330330806,1719259843598,-500.0,0.00016711,2]
[330330807,1719259843608,-500.0,0.00016711,2]
[330330808,1719259843620,-169.08,0.00016711,2]
[330330809,1719259843630,-500.0,0.00016711,2]
[330330810,1719259843639,-500.0,0.00016711,2]
[330330811,1719259843648,-500.0,0.00016711,2]
[330330812,1719259843658,-500.0,0.00016711,2]
[330330813,1719259843667,-190.85524548,0.00016711,2]
[330330814,1719259843710,1000.0,0.00063516,60]
[330330815,1719259843873,1000.0,0.00063391,60]
[330330816,1719259843905,1000.0,0.00064934,60]
[330330817,1719259843937,1000.0,0.0006538,60]
[330330818,1719259843972,1000.0,0.00064821,60]
[330330819,1719259844004,1000.0,0.00063571,60]
[330330820,1719259844021,-309.14475452,0.00016711,2]
[330330821,1719259844030,-1061.94,0.00016711,2]
[330330822,1719259844040,-1061.94,0.00016711,2]
[330330823,1719259844049,-1061.94,0.00016711,2]
[330330824,1719259844059,-1061.94,0.00016711,2]
[330330825,1719259844068,-1061.94,0.00016711,2]
[330330826,1719259844078,-1313.011853,0.00016711,2]
[330330827,1719259844087,-528.35763444,0.00016711,2]
[330330828,1719259844096,-500.0,0.00016712,2]
[330330829,1719259844105,-267.73196271,0.00016712,2]
[330330830,1719259844116,-500.0,0.00016712,2]
[330330831,1719259844125,-500.0,0.00016712,2]
[330330832,1719259844135,-500.0,0.00016712,2]
[330330833,1719259844144,-500.0,0.00016712,2]
[330330834,1719259844154,-500.0,0.00016712,2]
[330330835,1719259844162,-269.01355882,0.00016712,2]
[330330836,1719259844173,-500.0,0.00016712,2]
[330330837,1719259844186,-1221.02,0.00016712,2]
[330330838,1719259844195,-500.0,0.00016712,2]
[330330839,1719259844204,-500.0,0.00016712,2]
[330330840,1719259844213,-770.11,0.00016712,2]
[330330841,1719259844224,-506.75348073,0.00016712,2]
[330330842,1719259844232,-500.0,0.00016712,2]
[330330844,1719259844241,-362.47265357,0.00016712,2]
[330330846,1719259844250,-500.0,0.00016712,2]
[330330848,1719259844259,-500.0,0.00016712,2]
[330330849,1719259844270,-500.0,0.00016712,2]
[330330850,1719259844279,-500.0,0.00016712,2]
[330330851,1719259844289,-348.84828664,0.00016712,2]
[330330852,1719259844298,-500.0,0.00016712,2]
[330330854,1719259844307,-500.0,0.00016712,2]
[330330856,1719259844316,-500.0,0.00016712,2]
[330330858,1719259844325,-500.0,0.00016712,2]
[330330859,1719259844335,-500.0,0.00016712,2]
[330330861,1719259844343,-500.0,0.00016712,2]
[330330862,1719259844352,-1378.41,0.00016712,2]
[330330863,1719259844361,-500.0,0.00016712,2]
[330330864,1719259844371,-257.6344637,0.00016712,2]
[330330865,1719259844380,-500.0,0.00016712,2]
[330330867,1719259844389,-1031.19,0.00016712,2]
[330330868,1719259844399,-500.0,0.00016712,2]
[330330869,1719259844408,-500.0,0.00016712,2]
[330330870,1719259844417,-500.0,0.00016712,2]
[330330871,1719259844426,-443.64097995,0.00016712,2]
[330330872,1719259844435,-500.0,0.00016712,2]
[330330873,1719259844444,-500.0,0.00016712,2]
[330330874,1719259844453,-579.66403107,0.00016712,2]
[330330875,1719259844462,-500.0,0.00016712,2]
[330330876,1719259844472,-500.0,0.00016712,2]
[330330877,1719259844481,-251.67018763,0.00016712,2]
[330330878,1719259844490,-500.0,0.00016712,2]
[330330879,1719259844500,-500.0,0.00016712,2]
[330330880,1719259844509,-500.0,0.00016712,2]
[330330881,1719259844519,-500.0,0.00016712,2]
[330330882,1719259844528,-250.0,0.00016712,2]
[330330883,1719259844537,-538.5,0.00016712,2]
[330330884,1719259844546,-500.0,0.00016712,2]
[330330885,1719259844555,-505.61,0.00016712,2]
[330330886,1719259844564,-500.0,0.00016712,2]
[330330887,1719259844573,-1156.06,0.00016712,2]
[330330888,1719259844582,-500.0,0.00016712,2]
[330330889,1719259844592,-500.0,0.00016712,2]
[330330890,1719259844601,-500.0,0.00016712,2]
[330330891,1719259844610,-774.21,0.00016712,2]
[330330892,1719259844620,-500.0,0.00016712,2]
[330330893,1719259844630,-500.0,0.00016712,2]
[330330894,1719259844640,-500.0,0.00016712,2]
[330330895,1719259844649,-500.0,0.00016712,2]
[330330896,1719259844659,-500.0,0.00016712,2]
[330330897,1719259844669,-1344.49,0.00016712,2]
[330330898,1719259844679,-500.0,0.00016712,2]
[330330899,1719259844688,-500.0,0.00016712,2]
[330330900,1719259844698,-500.0,0.00016712,2]
[330330901,1719259844707,-500.0,0.00016712,2]
[330330902,1719259844717,-519.14383529,0.00016712,2]
[330330903,1719259844727,-500.0,0.00016712,2]
[330330904,1719259844736,-513.1534852,0.00016712,2]
[330330905,1719259844746,-500.0,0.00016712,2]
[330330906,1719259844756,-500.0,0.00016712,2]
[330330907,1719259844765,-500.0,0.00016712,2]
[330330908,1719259844898,-500.0,0.00016712,2]
[330330909,1719259844908,-386.43684698,0.00016712,2]
[330330910,1719259844924,-113.56315302,0.00016712,2]
[330330911,1719259844933,-500.0,0.00016712,2]
[330330912,1719259844942,-500.0,0.00016712,2]
[330330913,1719259844951,-500.0,0.00016712,2]
[330330914,1719259844960,-500.0,0.00016712,2]
[330330915,1719259844970,-594.88603407,0.00016712,2]
[330330916,1719259844979,-580.26,0.00016712,2]
[330330917,1719259844988,-500.0,0.00016712,2]
[330330918,1719259844997,-376.95578974,0.00016712,2]
[330330919,1719259845007,-500.0,0.00016712,2]
[330330920,1719259845017,-500.0,0.00016712,2]
[330330921,1719259845026,-489.0055747,0.00016712,2]
[330330922,1719259845036,-375.89791901,0.00016712,2]
[330330923,1719259845045,-500.0,0.00016712,2]
[330330924,1719259845055,-500.0,0.00016712,2]
[330330925,1719259845065,-500.0,0.00016712,2]
[330330926,1719259845074,-500.0,0.00016712,2]
[330330927,1719259845084,-500.0,0.00016712,2]
[330330928,1719259845092,-1208.15,0.00016712,2]
[330330929,1719259845102,-500.0,0.00016712,2]
[330330930,1719259845111,-155.46744008,0.00016712,2]
[330330931,1719259845123,-565.43,0.00016712,2]
[330330932,1719259845132,-1319.39,0.00016712,2]
[330330933,1719259845141,-500.0,0.00016712,2]
[330330934,1719259845151,-505.09184682,0.00016712,2]
[330330935,1719259845160,-500.0,0.00016712,2]
[330330936,1719259845170,-500.0,0.00016712,2]
[330330937,1719259845179,-516.92566186,0.00016712,2]
[330330938,1719259845193,-500.0,0.00016712,2]
[330330939,1719259845202,-500.0,0.00016712,2]
[330330940,1719259845212,-500.0,0.00016712,2]
[330330941,1719259845222,-548.51672985,0.00016712,2]
[330330942,1719259845231,-500.0,0.00016712,2]
[330330943,1719259845240,-500.0,0.00016712,2]
[330330944,1719259845249,-500.0,0.00016712,2]
[330330945,1719259845259,-500.0,0.00016712,2]
[330330946,1719259845269,-514.22,0.00016712,2]
[330330947,1719259845278,-500.0,0.00016712,2]
[330330948,1719259845288,-500.0,0.00016712,2]
[330330949,1719259845297,-564.23,0.00016712,2]
[330330950,1719259845306,-500.0,0.00016712,2]
[330330951,1719259845315,-500.0,0.00016712,2]
[330330952,1719259845324,-777.55,0.00016712,2]
[330330953,1719259845333,-23766.05,0.00016712,2]
[330330954,1719259845343,-500.0,0.00016712,2]
[330330955,1719259845353,-500.0,0.00016712,2]
[330330956,1719259845364,-500.0,0.00016712,2]
[330330957,1719259845374,-500.0,0.00016712,2]
[330330958,1719259845383,-500.0,0.00016712,2]
[330330959,1719259845392,-1037.99,0.00016712,2]
[330330960,1719259845400,-500.0,0.00016712,2]
[330330961,1719259845409,-1992.94,0.00016712,2]
[330330962,1719259845419,-2425.63,0.00016712,2]
[330330963,1719259845428,-2811.88,0.00016712,2]
[330330964,1719259845438,-500.0,0.00016712,2]
[330330965,1719259845449,-672.9,0.00016712,2]
[330330966,1719259845459,-500.0,0.00016712,2]
[330330967,1719259845468,-254.38790453,0.00016712,2]